{"text_format":"1","workbook":"xlsx","n_sheets":3,"sheets":["المجموعة الأولى","المجموعة الثانية","Sheet3"],"not_rendered":{"charts":0,"images":1,"macros":1,"external_links":0,"defined_names":2,"comments":0,"pivot_tables":0},"unopened":[],"bounds":{"document_bytes":16777216,"sheet_cells":100000,"rows_first":2000,"rows_last":500,"rows_between":2000,"halvings":0,"cell_chars":16384,"cell_head_chars":4096},"cells_cut":0,"cells_raw":0,"read":"whole","date_system":"1900"}

{"sheet":"المجموعة الأولى","index":0,"n_rows":91,"n_cols":29,"rows_kept":91,"cut":false,"hidden":false,"merged":[[26,13,26,14],[26,11,26,12],[27,11,27,12],[26,15,26,16],[26,17,26,18]]}
[]
[null,null,1,{"$f":"IF(D5=\"\",\"\",MAX($C2:C2)+1)","v":2},{"$f":"IF(E5=\"\",\"\",MAX($C2:D2)+1)","v":3},{"$f":"IF(F5=\"\",\"\",MAX($C2:E2)+1)","v":4},{"$f":"IF(G5=\"\",\"\",MAX($C2:F2)+1)","v":5},{"$f":"IF(H5=\"\",\"\",MAX($C2:G2)+1)","v":6},{"$f":"IF(I5=\"\",\"\",MAX($C2:H2)+1)","v":7},{"$f":"IF(J5=\"\",\"\",MAX($C2:I2)+1)","v":8},{"$f":"IF(K5=\"\",\"\",MAX($C2:J2)+1)","v":9}]
[null,"اليوم",{"$f":"C4","v":"2021-02-28"},"2021-02-28","2021-03-02","2021-03-04","2021-03-04","2021-03-07","2021-03-09","2021-03-09","2021-03-11"]
[null,"التاريخ",{"$f":"AC7","v":"2021-02-28"},{"$f":"C4","v":"2021-02-28"},{"$f":"C4+D30","v":"2021-03-02"},{"$f":"E4+E30","v":"2021-03-04"},{"$f":"F4","v":"2021-03-04"},{"$f":"F4+G30","v":"2021-03-07"},{"$f":"H4+H30","v":"2021-03-09"},{"$f":"I4","v":"2021-03-09"},{"$f":"I4+J30","v":"2021-03-11"}]
[null,"المادة","عربى","رياضيات","احياء","لغة ثانية","علم نفس","فيزياء","انجليزى","كيمياء","تطبيقات الرياضيات"]
["أسماء المراقبين","اللجان","الأولى","الثانية","الأولى","الأولى","الثانية","الأولى","الأولى","الثانية","الأولى",null,null,null,"الفترة16","الفترة17","الفترة18","الفترة19","الفترة20"]
["احمد مصطفى",1,"اسماء جمعة","محمد علي","محمد المراغي","محمود خطاب","خالد بسيوني","ايمن عبدالمالك","احمد عبدالعظيم","عصام عبدالجليل","عمرو ماجد",null,null,null,"محمد علي","محمد عبدالله","هيثم هاشم","سيد الحسيني","تامر محمد",null,null,null,null,null,null,null,null,"تاريخ بداية الامتحان","2021-02-28"]
["محمد علي يوسف",2,"محمد عبدالله","محمود اسماعيل","محمود خطاب","احمد حسني","محمود ابوضيف","سمية","اسماء جمعة","صفاء","تامر محمد",null,null,null,"سمية","مروان عباس","صلاح محمود","محمد علي يوسف","ياسر محمود"]
["محمود اسماعيل",3,"نهى محمد","ايمن عبدالمالك","ياسر محمود","صلاح محمود","مي أحمد","سالم محمود","محمود اسماعيل","هيثم هاشم","محمد المراغي",null,null,null,"ياسر موسى","احمد مصطفى","تامر محمد","هيثم هاشم","محمد غالي"]
["محمود خطاب",4,"ايمن عبدالمالك","محمد عبدالله","احمد حسني","محمود اسماعيل","عصام عبدالجليل","صلاح محمود","محمود خطاب","ياسر موسى","أحمد يسري",null,null,null,"صلاح محمود","محمد علي يوسف","مروان عباس","سالم محمود","ياسر موسى"]
["محمود ابوضيف",5,"احمد عبدالعظيم","ياسر موسى","نهى محمد","مروان عباس","محمود اسماعيل","احمد مصطفى","احمد حسني","خالد بسيوني","فتحي شعبان",null,null,null,"صبحي","محمد علي صقر","احمد مصطفى","حمادة عبدالمنعم","محمد علي"]
["صلاح محمود",6,"محمد علي صقر","عبدالرحمن الكردي","مروان عباس","احمد مصطفى","محمد عبدالله","أحمد يسري","عصام عبدالجليل","احمد عبدالعظيم","احمد حسني",null,null,null,"مروان عباس","سمية","محمود ابوضيف","محمد المراغي","مي أحمد"]
["تامر محمد",7,"سمية","اسماء جمعة","صبحي","ياسر محمود","صلاح محمود","عبدالرحمن الكردي","محمد عبدالله","محمود ابوضيف","احمد مصطفى",null,null,null,"محمود ابوضيف","حمادة عبدالمنعم","ياسر محمود","عصام عبدالجليل","سمية"]
["محمد عبدالله",8,"ياسر محمود","سمية","عمرو ماجد","صفاء","نهى محمد","سيد الحسيني","محمد علي","محمد المراغي","مي أحمد",null,null,null,"حمادة عبدالمنعم","سيد الحسيني","سالم محمود","ياسر محمود","محمد علي يوسف"]
["محمد علي صقر",9,"تامر محمد","حمادة عبدالمنعم","سمية","محمد علي","محمد علي صقر","صبحي","نهى محمد","محمد غالي","صلاح محمود",null,null,null,"نهى محمد","صلاح محمود","ياسر موسى","تامر محمد","عبدالرحمن الكردي"]
["مروان عباس",10,"سالم محمود","محمد علي صقر","مينا يوسف","أحمد يسري","عبدالرحمن الكردي","تامر محمد","مي أحمد","صبحي","خالد بسيوني",null,null,null,"عبدالرحمن الكردي","مي أحمد","محمد علي يوسف","فتحي شعبان","محمد المراغي"]
["ياسر موسى",null,null,null,null,null,null,null,null,null,null,"سمية","محمود ابوضيف","محمد غالي","احمد حسني","محمود اسماعيل","فتحي شعبان","ايمن عبدالمالك","مينا يوسف"]
["فتحي شعبان",null,null,null,null,null,null,null,null,null,null,"فتحي شعبان","حمادة عبدالمنعم","محمد علي صقر","مينا يوسف","سالم محمود","محمد علي","مي أحمد","عصام عبدالجليل"]
["احمد حسني",null,null,null,null,null,null,null,null,null,null,"مروان عباس","سيد الحسيني","محمود ابوضيف","احمد مصطفى","تامر محمد","احمد عبدالعظيم","ياسر موسى","سالم محمود"]
["ياسر محمود",null,null,null,null,null,null,null,null,null,null,"ياسر محمود","مروان عباس","ايمن عبدالمالك","عصام عبدالجليل","محمد علي","سمية","اسماء جمعة","محمود ابوضيف"]
["محمد غالي",null,null,null,null,null,null,null,null,null,null,"احمد حسني","عصام عبدالجليل","ياسر موسى","محمد المراغي","محمود ابوضيف","محمد عبدالله","محمد علي صقر","نهى محمد"]
["محمد المراغي",null,null,null,null,null,null,null,null,null,null,"ايمن عبدالمالك","احمد حسني","احمد مصطفى","فتحي شعبان","محمود خطاب","محمود اسماعيل","سمية","صبحي"]
["حمادة عبدالمنعم",null,null,null,null,null,null,null,null,null,null,"هيثم هاشم","محمد علي صقر","محمود خطاب","محمود اسماعيل","فتحي شعبان","اسماء جمعة","احمد حسني","صلاح محمود"]
["ايمن عبدالمالك",null,null,null,null,null,null,null,null,null,null,"سيد الحسيني","صبحي","عصام عبدالجليل","محمد غالي","ايمن عبدالمالك","مينا يوسف","محمود اسماعيل","محمود خطاب"]
["عبدالرحمن الكردي",null,null,null,null,null,null,null,null,null,null,"نهى محمد","هيثم هاشم","محمد علي يوسف","سالم محمود","مينا يوسف","صبحي","صلاح محمود","مروان عباس"]
["محمد علي",null,null,null,null,null,null,null,null,null,null,"احمد مصطفى","مي أحمد","سيد الحسيني","احمد عبدالعظيم","عصام عبدالجليل","ايمن عبدالمالك","محمد عبدالله","هيثم هاشم"]
["سالم محمود",null,null,null,null,null,null,null,null,null,null,{"$f":"L28","v":"00:00:00"},null,{"$f":"N28","v":"00:00:00"},null,{"$f":"P28","v":"00:00:00"},null,{"$f":"R28","v":"00:00:00"}]
["سمية"]
["مينا يوسف"]
["عصام عبدالجليل",null,null,2,2,null,3,2,null,2]
["صبحي"]
["اسماء جمعة"]
["نهى محمد"]
["مي أحمد"]
["سيد الحسيني"]
["احمد عبدالعظيم"]
["هيثم هاشم"]
["خالد بسيوني"]
["صفاء"]
["عمرو ماجد"]
["أحمد يسري"]
[]
[]
[]
[]
[]
[]
[]
[]
[]
[]
[]
[]
[]
[]
[]
[]
[]
[]
[]
[]
[]
[]
[]
[]
[]
[]
[]
[]
[]
[]
[]
[]
[null,null,null,"عربى"]
[null,null,null,"انجليزى"]
[null,null,null,"علوم"]
[null,null,null,"درسات"]
[null,null,null,"دين"]
[null,null,null,"رياضيات"]
[null,null,null,"جبر"]
[null,null,null,"هندسة"]
[null,null,null,"حاسب"]
[null,null,null,"كيمياء"]
[null,null,null,"فيزياء"]
[null,null,null,"احياء"]
[null,null,null,"فلسفة"]
[null,null,null,"تاريخ"]
[null,null,null,"علم نفس"]
[null,null,null,"جغرافيا"]
[null,null,null,"تطبيقات الرياضيات"]
[null,null,null,"لغة ثانية"]

{"sheet":"المجموعة الثانية","index":1,"n_rows":91,"n_cols":19,"rows_kept":91,"cut":false,"hidden":false,"merged":[[3,2,3,3],[3,5,3,6],[3,8,3,9],[2,2,2,3],[2,5,2,6],[2,8,2,9],[27,11,27,12],[26,11,26,12],[26,13,26,14],[26,15,26,16],[26,17,26,18]]}
[]
[null,null,{"$f":"'المجموعة الأولى'!C2","v":1},{"$f":"'المجموعة الأولى'!D2","v":2},{"$f":"'المجموعة الأولى'!E2","v":3},{"$f":"'المجموعة الأولى'!F2","v":4},{"$f":"'المجموعة الأولى'!G2","v":5},{"$f":"'المجموعة الأولى'!H2","v":6},{"$f":"'المجموعة الأولى'!I2","v":7},{"$f":"'المجموعة الأولى'!J2","v":8},{"$f":"'المجموعة الأولى'!K2","v":9}]
[null,"اليوم",{"$f":"'المجموعة الأولى'!C3","v":"2021-02-28"},null,{"$f":"'المجموعة الأولى'!E3","v":"2021-03-02"},{"$f":"'المجموعة الأولى'!F3","v":"2021-03-04"},null,{"$f":"'المجموعة الأولى'!H3","v":"2021-03-07"},{"$f":"'المجموعة الأولى'!I3","v":"2021-03-09"},null,{"$f":"'المجموعة الأولى'!K3","v":"2021-03-11"}]
[null,"التاريخ",{"$f":"'المجموعة الأولى'!C4","v":"2021-02-28"},null,{"$f":"'المجموعة الأولى'!E4","v":"2021-03-02"},{"$f":"'المجموعة الأولى'!F4","v":"2021-03-04"},null,{"$f":"'المجموعة الأولى'!H4","v":"2021-03-07"},{"$f":"'المجموعة الأولى'!I4","v":"2021-03-09"},null,{"$f":"I4+J30","v":"2021-03-09"}]
[null,"المادة",{"$f":"'المجموعة الأولى'!C5","v":"عربى"},{"$f":"'المجموعة الأولى'!D5","v":"رياضيات"},{"$f":"'المجموعة الأولى'!E5","v":"احياء"},{"$f":"'المجموعة الأولى'!F5","v":"لغة ثانية"},{"$f":"'المجموعة الأولى'!G5","v":"علم نفس"},{"$f":"'المجموعة الأولى'!H5","v":"فيزياء"},{"$f":"'المجموعة الأولى'!I5","v":"انجليزى"},{"$f":"'المجموعة الأولى'!J5","v":"كيمياء"},{"$f":"'المجموعة الأولى'!K5","v":"تطبيقات الرياضيات"}]
["أسماء المراقبين","اللجان","الأولى","الثانية","الأولى","الأولى","الثانية","الأولى","الأولى","الثانية","الأولى","الفترة13","الفترة14","الفترة15","الفترة16","الفترة17","الفترة18","الفترة19","الفترة20"]
["احمد مصطفى",1,"محمد عبدالله","صلاح محمود","محمود خطاب","ياسر محمود","احمد مصطفى","مي أحمد","نهى محمد","مروان عباس","سيد الحسيني",null,null,null,"محمد علي","محمد عبدالله","هيثم هاشم","سيد الحسيني","تامر محمد"]
["محمد علي يوسف",2,"محمد علي","أحمد يسري","محمود ابوضيف","صفاء","فتحي شعبان","عبدالرحمن الكردي","سمية","محمود خطاب","ياسر موسى",null,null,null,"سمية","مروان عباس","صلاح محمود","محمد علي يوسف","ياسر محمود"]
["محمود اسماعيل",3,"محمد علي يوسف","سيد الحسيني","احمد عبدالعظيم","محمد المراغي","حمادة عبدالمنعم","عمرو ماجد","مينا يوسف","صلاح محمود","صفاء",null,null,null,"ياسر موسى","احمد مصطفى","تامر محمد","هيثم هاشم","محمد غالي"]
["محمود خطاب",4,"ايمن عبدالمالك","محمد علي يوسف","محمد علي","محمد علي صقر","محمود ابوضيف","اسماء جمعة","تامر محمد","محمد المراغي","محمد غالي",null,null,null,"صلاح محمود","محمد علي يوسف","مروان عباس","سالم محمود","ياسر موسى"]
["محمود ابوضيف",5,"ياسر محمود","احمد عبدالعظيم","محمد المراغي","ايمن عبدالمالك","نهى محمد","محمد علي يوسف","مي أحمد","سمية","تامر محمد",null,null,null,"صبحي","محمد علي صقر","احمد مصطفى","حمادة عبدالمنعم","محمد علي"]
["صلاح محمود",6,"ياسر موسى","عمرو ماجد","محمد علي يوسف","محمد علي","محمد غالي","فتحي شعبان","احمد عبدالعظيم","محمد علي صقر","محمود ابوضيف",null,null,null,"مروان عباس","سمية","محمود ابوضيف","محمد المراغي","مي أحمد"]
["تامر محمد",7,"احمد عبدالعظيم","محمد علي صقر","مينا يوسف","محمود ابوضيف","سمية","تامر محمد","أحمد يسري","صفاء","صبحي",null,null,null,"محمود ابوضيف","حمادة عبدالمنعم","ياسر محمود","عصام عبدالجليل","سمية"]
["محمد عبدالله",8,"حمادة عبدالمنعم","محمد عبدالله","احمد حسني","عمرو ماجد","اسماء جمعة","هيثم هاشم","خالد بسيوني","محمود ابوضيف","ياسر محمود",null,null,null,"حمادة عبدالمنعم","سيد الحسيني","سالم محمود","ياسر محمود","محمد علي يوسف"]
["محمد علي صقر",9,"محمود اسماعيل","محمود ابوضيف","عصام عبدالجليل","محمد غالي","صبحي","أحمد يسري","احمد مصطفى","هيثم هاشم","سالم محمود",null,null,null,"نهى محمد","صلاح محمود","ياسر موسى","تامر محمد","عبدالرحمن الكردي"]
["مروان عباس",10,"تامر محمد","محمد غالي","صبحي","هيثم هاشم","احمد حسني","محمد عبدالله","فتحي شعبان","احمد مصطفى","اسماء جمعة",null,null,null,"عبدالرحمن الكردي","مي أحمد","محمد علي يوسف","فتحي شعبان","محمد المراغي"]
["ياسر موسى"]
["فتحي شعبان"]
["احمد حسني"]
["ياسر محمود"]
["محمد غالي"]
["محمد المراغي"]
["حمادة عبدالمنعم"]
["ايمن عبدالمالك"]
["عبدالرحمن الكردي"]
["محمد علي"]
["سالم محمود",null,null,null,null,null,null,null,null,null,null,{"$f":"L28","v":"00:00:00"},null,{"$f":"N28","v":"00:00:00"},null,{"$f":"P28","v":"00:00:00"},null,{"$f":"R28","v":"00:00:00"}]
["سمية"]
["مينا يوسف"]
["عصام عبدالجليل"]
["صبحي"]
["اسماء جمعة"]
["نهى محمد"]
["مي أحمد"]
["سيد الحسيني"]
["احمد عبدالعظيم"]
["هيثم هاشم"]
["خالد بسيوني"]
["صفاء"]
["عمرو ماجد"]
["أحمد يسري"]
[]
[]
[]
[]
[]
[]
[]
[]
[]
[]
[]
[]
[]
[]
[]
[]
[]
[]
[]
[]
[]
[]
[]
[]
[]
[]
[]
[]
[]
[]
[]
[]
[null,null,null,"عربى"]
[null,null,null,"انجليزى"]
[null,null,null,"علوم"]
[null,null,null,"درسات"]
[null,null,null,"دين"]
[null,null,null,"رياضة"]
[null,null,null,"جبر"]
[null,null,null,"هندسة"]
[null,null,null,"حاسب"]
[null,null,null,"كيمياء"]
[null,null,null,"فيزياء"]
[null,null,null,"احياء"]
[null,null,null,"فلسفة"]
[null,null,null,"تاريخ"]
[null,null,null,"علم نفس"]
[null,null,null,"جغرافيا"]
[null,null,null,"تطبيقات الرياضيات"]
[null,null,null,"لغة ثانية"]

{"sheet":"Sheet3","index":2,"n_rows":37,"n_cols":19,"rows_kept":37,"cut":false,"hidden":false,"merged":[[4,4,4,6],[5,4,5,6],[6,4,6,6],[13,8,13,9],[11,4,11,6],[14,4,15,4],[14,8,14,9],[15,8,15,9],[16,4,17,4],[16,8,16,9],[17,8,17,9],[18,4,19,4],[18,8,18,9],[19,8,19,9],[20,4,21,4],[20,8,20,9],[21,8,21,9],[22,4,23,4],[22,8,22,9],[23,8,23,9],[24,4,25,4],[24,8,24,9],[25,8,25,9],[26,4,27,4],[26,8,26,9],[27,8,27,9],[28,4,29,4],[28,8,28,9],[29,8,29,9],[35,4,35,5],[36,4,36,5],[30,4,31,4],[30,8,30,9],[31,8,31,9],[32,4,33,4],[32,8,32,9],[33,8,33,9]]}
[null,1]
[]
[null,{"$f":"HLOOKUP($B$1,'المجموعة الأولى'!$C$2:$K$6,5,FALSE)","v":"الأولى"}]
[null,{"$f":"HLOOKUP($B$1,'المجموعة الأولى'!$C$2:$K$6,4,FALSE)","v":"عربى"}]
[null,{"$f":"HLOOKUP($B$1,'المجموعة الأولى'!$C$2:$K$6,3,FALSE)","v":"2021-02-28"},null,null,"مديرية التربية والتعليم بالجيزة",null,null,null,"الفترة :  ",{"$f":"B3","v":"الأولى"}]
[null,null,null,null,"إدارة 6 اكتوبر التعليمية",null,null,null,"المادة :",{"$f":"B4","v":"عربى"},null,null,null,null,null,null,"المادة","من ","إلى"]
[null,null,null,null,"مدارس أم المؤمنين الخاصة",null,null,null,"من :",{"$f":"IF(OR(B1>=35,J6=\"\"),\"\",VLOOKUP(J6,Q7:S24,2,FALSE))","v":"09:00:00"},null,null,null,null,null,null,"عربى","09:00:00","10:30:00"]
[null,null,null,null,null,null,null,null,"إلى :",{"$f":"IF(OR(B1>=35,J6=\"\"),\"\",VLOOKUP(J6,Q7:S24,3,FALSE))","v":"10:30:00"},null,null,null,null,null,null,"انجليزى","09:00:00","10:30:00"]
[null,null,null,null,null,null,null,null,null,null,null,null,null,null,null,null,"علوم"]
[null,null,null,null,null,"امتحان الفصل الدراسي الأول للعام الدراسي 2020 / 2021",null,null,null,null,null,null,null,null,null,null,"درسات"]
[null,null,null,null,null,null,null,null,null,null,null,null,null,null,null,null,"دين"]
[null,null,null,null,"كشف توزيع الملاحظة عن يوم ",null,null,{"$f":"B5","v":"2021-02-28"},"الموافق :",{"$f":"B5","v":"2021-02-28"},null,null,null,null,null,null,"رياضيات","11:30:00","01:00:00"]
[null,null,null,null,null,null,null,null,null,null,null,null,null,null,null,null,"جبر"]
[null,null,null,null,"رقم اللجنة",null,"اسم الملاحظ","التوقيع","ملاحظات",null,null,null,null,null,null,null,"هندسة"]
[null,null,null,null,1,1,{"$f":"HLOOKUP(Sheet3!B1,'المجموعة الأولى'!$C$2:$K$7,6,0)","v":"اسماء جمعة"},null,null,null,null,null,null,null,null,null,"حاسب"]
[null,null,null,null,null,2,{"$f":"HLOOKUP(Sheet3!B1,'المجموعة الثانية'!$C$2:$K$7,6,0)","v":"محمد عبدالله"},null,null,null,null,null,null,null,null,null,"كيمياء","11:30:00","12:30:00"]
[null,null,null,null,2,1,{"$f":"HLOOKUP(Sheet3!B1,'المجموعة الأولى'!$C$2:$K$8,7,0)","v":"محمد عبدالله"},null,null,null,null,null,null,null,null,null,"فيزياء","09:00:00","10:00:00"]
[null,null,null,null,null,2,{"$f":"HLOOKUP(Sheet3!B1,'المجموعة الثانية'!$C$2:$K$8,7,0)","v":"محمد علي"},null,null,null,null,null,null,null,null,null,"احياء","09:00:00","10:00:00"]
[null,null,null,null,3,1,{"$f":"HLOOKUP(Sheet3!B1,'المجموعة الأولى'!$C$2:$K$9,8,0)","v":"نهى محمد"},null,null,null,null,null,null,null,null,null,"فلسفة","09:00:00","10:00:00"]
[null,null,null,null,null,2,{"$f":"HLOOKUP(Sheet3!B1,'المجموعة الثانية'!$C$2:$K$9,8,0)","v":"محمد علي يوسف"},null,null,null,null,null,null,null,null,null,"تاريخ","09:00:00","10:00:00"]
[null,null,null,null,4,1,{"$f":"HLOOKUP(Sheet3!B1,'المجموعة الأولى'!$C$2:$K$10,9,0)","v":"ايمن عبدالمالك"},null,null,null,null,null,null,null,null,null,"علم نفس","11:00:00","12:00:00"]
[null,null,null,null,null,2,{"$f":"HLOOKUP(Sheet3!B1,'المجموعة الثانية'!$C$2:$K$10,9,0)","v":"ايمن عبدالمالك"},null,null,null,null,null,null,null,null,null,"جغرافيا","09:00:00","10:00:00"]
[null,null,null,null,5,1,{"$f":"HLOOKUP(Sheet3!B1,'المجموعة الأولى'!$C$2:$K$11,10,0)","v":"احمد عبدالعظيم"},null,null,null,null,null,null,null,null,null,"تطبيقات الرياضيات","09:00:00","10:15:00"]
[null,null,null,null,null,2,{"$f":"HLOOKUP(Sheet3!B1,'المجموعة الثانية'!$C$2:$K$11,10,0)","v":"ياسر محمود"},null,null,null,null,null,null,null,null,null,"لغة ثانية","09:00:00","10:00:00"]
[null,null,null,null,6,1,{"$f":"HLOOKUP(Sheet3!B1,'المجموعة الأولى'!$C$2:$K$12,11,0)","v":"محمد علي صقر"}]
[null,null,null,null,null,2,{"$f":"HLOOKUP(Sheet3!B1,'المجموعة الثانية'!$C$2:$K$12,11,0)","v":"ياسر موسى"}]
[null,null,null,null,7,1,{"$f":"HLOOKUP(Sheet3!B1,'المجموعة الأولى'!$C$2:$K$13,12,0)","v":"سمية"}]
[null,null,null,null,null,2,{"$f":"HLOOKUP(Sheet3!B1,'المجموعة الثانية'!$C$2:$K$13,12,0)","v":"احمد عبدالعظيم"}]
[null,null,null,null,8,1,{"$f":"HLOOKUP(Sheet3!B1,'المجموعة الأولى'!$C$2:$K$14,13,0)","v":"ياسر محمود"}]
[null,null,null,null,null,2,{"$f":"HLOOKUP(Sheet3!B1,'المجموعة الثانية'!$C$2:$K$14,13,0)","v":"حمادة عبدالمنعم"}]
[null,null,null,null,9,1,{"$f":"HLOOKUP(Sheet3!B1,'المجموعة الأولى'!$C$2:$K$15,14,0)","v":"تامر محمد"}]
[null,null,null,null,null,2,{"$f":"HLOOKUP(Sheet3!B1,'المجموعة الثانية'!$C$2:$K$15,14,0)","v":"محمود اسماعيل"}]
[null,null,null,null,10,1,{"$f":"HLOOKUP(Sheet3!B1,'المجموعة الأولى'!$C$2:$K$16,15,0)","v":"سالم محمود"}]
[null,null,null,null,null,2,{"$f":"HLOOKUP(Sheet3!B1,'المجموعة الثانية'!$C$2:$K$16,15,0)","v":"تامر محمد"}]
[]
[null,null,null,null,"رئيس الكنترول",null,null,"رئيس لجنة النظام والمراقبة",null,"مدير المدرسة"]
[null,null,null,null,"أمل محمود",null,null,"حسن شاكر",null,"محمد نعمان"]